[Event "Baku Open 2024"]
[Site "Baku"]
[Date "2024.07.02"]
[Round "4.40"]
[White "Gurbanov, Ismayil"]
[Black "Orujov, Elshad"]
[Result "1-0"]
[ECO "B13"]
[WhiteElo "2163"]
[BlackElo "2304"]
[Annotator "TA"]
[PlyCount "63"]
[EventDate "2024.06.29"]
[EventType "swiss"]
[EventCountry "AZE"]
[SourceTitle "playchess.com"]
[Source "ChessBase"]
[SourceQuality "1"]
[TimeControl "5400+30"]

{[%evp 20,63,1,8,62,59,60,54,79,66,75,73,280,243,433,428,485,473,472,469,644,546,548,548,736,717,672,448,443,441,868,866,964,629,763,695,761,736,1328,1307,1100,496,29964,29968,5473,824]} 1. e4 {[%emt 0:05:41]} d5 {[%emt 0:00:04]} 2. exd5 {[%emt 0:00:03]} Nf6 {[%emt 0:00:05]} 3. c4 {[%emt 0:00:03]} c6 {[%emt 0:00:13]} 4. d4 {[%emt 0:00:03]} cxd5 {[%emt 0:00:08]} 5. Nc3 {[%emt 0:00:02]} Nc6 {[%emt 0:00:19]} 6. Nf3 {[%emt 0:00:05]} Bg4 {[%emt 0:00:44]} 7. cxd5 {[%emt 0:00:12]} Nxd5 {[%emt 0:00:03][%cal Bf6d5,Bd5b6,Bb6d7,Bd7e5][%mdl 32]} 8. Qb3 {[%emt 0:00:07]} Bxf3 {[%emt 0:00:19]} 9. gxf3 {[%emt 0:00:04]} Nb6 {[%emt 0:00:40]} 10. d5 {[%emt 0:00:08]} Nd4 {[%emt 0:00:15]} 11. Bb5+ {[%emt 0:00:07]} Nxb5 {[%emt 0:00:07]} (11... Nd7 $11 12. Qa4 Nxb5 13. Qxb5 g6) 12. Nxb5 $14 {[%emt 0:00:04] [#] Black must now prevent Bf4.} a6 $1 {[%emt 0:16:20]} (12... Nxd5 $2 13. Qxd5 Qxd5 14. Nc7+ Kd7 15. Nxd5 $18) 13. Nc3 {[%emt 0:00:05]} g6 {[%emt 0:14:19] White is slightly better.} 14. Be3 {[%emt 0:00:08]} Nd7 {[%emt 0:00:04]} 15. Bd4 {[%emt 0:00:30] Prevents Bg7. White is much more active.} f6 $2 {[%emt 0:00:39]} (15... Nf6 $16) 16. d6 $18 {[%emt 0:00:59]} (16. Qxb7 Bh6 17. O-O Bf4 $16) 16... exd6 $2 {[%emt 0:03:47]} (16... Ne5 17. Ne4 (17. Qxb7 Rb8 $11) 17... Qa5+ 18. Bc3 Nxf3+ 19. Ke2 Qf5) 17. O-O-O {[%emt 0:01:49][%cal Be1c1,Bc1b1,Bb1a1][%mdl 32]} (17. Qxb7 Bh6 18. Qd5 Qe7+ 19. Kf1 Rd8 $18) 17... Bh6+ {[%emt 0:06:12]} 18. Kb1 {[%emt 0:00:06]} Kf8 {[%emt 0:01:25]} 19. Rhe1 {[%emt 0:01:50]} (19. Qxb7 Kg7 20. Rhe1 Rf8 $18) 19... Ne5 {[%emt 0:03:59]} 20. Nd5 {[%emt 0:10:11]} Qd7 {[%emt 0:14:00]} 21. f4 {[%emt 0:01:05]} Qf5+ {[%emt 0:00:20]} 22. Ka1 {[%emt 0:00:05]} Bxf4 {[%emt 0:01:36]} 23. Qxb7 {[%emt 0:00:34]} (23. Nc7 Rc8 24. Qxb7 (24. Ne6+ Ke7 $18) 24... Rg8 $18) 23... Re8 {[%emt 0:00:30] Against Qe7+} 24. Nxf4 {[%emt 0:00:48]} (24. Qxa6 Rd8 25. Bc3 Kg7 26. Nxf4 Qxf4 27. Qb7+ (27. Rxd6 Rxd6 28. Qxd6 Rf8 $16) 27... Nf7) 24... Qxf4 {[%emt 0:00:43]} (24... Re7 $142 25. Qa8+ (25. Qxa6 Qxf4 26. Qxd6 Kf7 $18) (25. Qb8+ Kg7 $18) 25... Re8) 25. Be3 {[%emt 0:00:04]} (25. Qxa6 Kg7 26. Qxd6 Rhf8 $18) 25... Qh4 {[%emt 0:00:16]} 26. Rd4 {[%emt 0:00:13]} ({Weaker is} 26. Qxa6 Kg7 $16) 26... Qh3 {[%emt 0:03:49]} 27. Rxd6 {[%emt 0:00:15]} Kg8 {[%emt 0:10:31][%cal Bf8g8,Bg8g7,Bg7f6][%mdl 32] Black is weak on the dark squares} 28. Rxf6 {[%emt 0:05:19] Hoping for Bd4.} Qc8 {[%emt 0:02:36]} 29. Qd5+ {[%emt 0:02:03]} (29. Qxa6 Qxa6 30. Rxa6 Nd3 $18) 29... Kg7 {[%emt 0:00:11]} 30. Rb6 {[%emt 0:01:14]} (30. Bd4 $142 Qc4 31. Qd6 (31. Rxe5 $2 Qc1#) 31... Qxd4 32. Qxd4 Kxf6 33. f4) 30... Qc4 {[%emt 0:09:10]} (30... Nf7 $18 31. Qd4+ Kg8) 31. Rb7+ {[%emt 0:00:16]} Kf6 {[%emt 0:02:04] [#]} 32. Rf7+ $3 {[%emt 0:00:06][%mdl 512] Black did not feel at home in the position after the opening.   Weighted Error Value: White=0.61/Black=0.96.  Loses game:     	---       	Black=1      Mistake:       	---       	Black=2      Inaccurate:     	---       	Black=2      OK:         	White=6     	Black=5      Best:        	White=3     	---        Strong:       	---       	Black=1} 1-0

[Event "Baku Open 2024"]
[Site "Baku"]
[Date "2024.07.02"]
[Round "4.41"]
[White "Avinash Ramesh"]
[Black "Lyutsinger, Iren"]
[Result "1-0"]
[ECO "B53"]
[WhiteElo "2252"]
[BlackElo "2069"]
[Annotator "NA RC"]
[PlyCount "105"]
[EventDate "2024.06.29"]
[EventType "swiss"]
[EventCountry "AZE"]
[SourceTitle "playchess.com"]
[Source "ChessBase"]
[SourceQuality "1"]
[TimeControl "5400+30"]

1. e4 {[%emt 0:05:14]} c5 {[%emt 0:00:02]} 2. Nc3 {[%emt 0:00:08]} d6 {[%emt 0:00:20]} 3. Nf3 {[%emt 0:00:11]} Nf6 {[%emt 0:00:09]} 4. d4 {[%emt 0:02:44]} cxd4 {[%emt 0:00:06]} 5. Qxd4 {[%emt 0:00:03]} Nc6 {[%emt 0:00:08]} 6. Qd3 {[%emt 0:00:08]} g6 {[%emt 0:01:20]} 7. Nd5 {[%emt 0:01:47]} Bg7 {[%emt 0:07:33]} 8. c3 {[%emt 0:00:12]} O-O {[%emt 0:00:53]} 9. Be2 {[%emt 0:00:07]} Be6 {[%emt 0:21:12]} 10. O-O {[%emt 0:00:39]} Rc8 {[%emt 0:01:26]} 11. Bg5 {[%emt 0:03:13]} Nd7 {[%emt 0:02:28]} 12. Rad1 {[%emt 0:07:29]} h6 {[%emt 0:02:10]} 13. Bh4 {[%emt 0:00:47]} Bxd5 {[%emt 0:11:23]} 14. exd5 {[%emt 0:02:04]} Nce5 {[%emt 0:00:34]} 15. Nxe5 {[%emt 0:00:25]} Nxe5 {[%emt 0:00:07]} 16. Qe3 {[%emt 1:13:19]} g5 {[%emt 0:07:19]} 17. Bg3 {[%emt 0:00:00]} Nc4 {[%emt 0:03:42]} 18. Bxc4 {[%emt 0:00:00]} Rxc4 {[%emt 0:00:08]} 19. Qxa7 {[%emt 0:00:00]} b5 {[%emt 0:04:31]} 20. a3 {[%emt 0:00:00]} Rc5 {[%emt 0:02:40]} 21. Rfe1 {[%emt 0:00:00]} Bf6 {[%emt 0:00:37]} 22. f3 {[%emt 0:00:00]} Qc8 {[%emt 0:00:53]} 23. Bf2 {[%emt 0:00:00]} Rc4 {[%emt 0:00:26]} 24. Qe3 {[%emt 0:00:00]} Qf5 {[%emt 0:00:08]} 25. Qd3 {[%emt 0:00:00]} Qxd3 {[%emt 0:02:02]} 26. Rxd3 {[%emt 0:00:00]} Ra8 {[%emt 0:00:08]} 27. Red1 {[%emt 0:00:00]} g4 {[%emt 0:02:20]} 28. fxg4 {[%emt 0:00:00]} Rxg4 {[%emt 0:00:06]} 29. Re1 {[%emt 0:00:00]} Kf8 {[%emt 0:02:04]} 30. h3 {[%emt 0:00:00]} Rc4 {[%emt 0:00:34]} 31. Kf1 {[%emt 0:00:00]} Ke8 {[%emt 0:00:49]} 32. Ke2 {[%emt 0:00:00]} Kd7 {[%emt 0:00:26]} 33. Red1 {[%emt 0:00:00]} Rg8 {[%emt 0:01:16]} 34. Rg3 {[%emt 0:00:00]} Rg5 {[%emt 0:00:32]} 35. Rxg5 {[%emt 0:00:00]} Bxg5 {[%emt 0:00:08]} 36. Bd4 {[%emt 0:00:00]} e5 {[%emt 0:01:17]} 37. dxe6+ {[%emt 0:00:00]} fxe6 {[%emt 0:00:18]} 38. Kf3 {[%emt 0:00:00]} Ke7 {[%emt 0:03:42]} 39. g3 {[%emt 0:00:00]} e5 {[%emt 0:00:50]} 40. Be3 {[%emt 0:00:00]} Ke6 {[%emt 0:01:03]} 41. Bxg5 {[%emt 0:00:00]} hxg5 {[%emt 0:00:37]} 42. Rh1 {[%emt 0:00:00]} d5 {[%emt 0:03:09]} 43. h4 {[%emt 0:00:00]} gxh4 {[%emt 0:02:38]} 44. gxh4 {[%emt 0:00:00]} Rf4+ {[%emt 0:01:15]} 45. Ke3 {[%emt 0:00:00]} Kf6 {[%emt 0:01:09]} 46. h5 {[%emt 0:00:00]} Kg7 {[%emt 0:00:07]} 47. Rd1 {[%emt 0:00:00]} Re4+ {[%emt 0:01:45]} 48. Kf3 {[%emt 0:00:00]} Rf4+ {[%emt 0:01:16]} 49. Kg3 {[%emt 0:00:00]} Re4 {[%emt 0:03:10]} 50. Rxd5 {[%emt 0:00:00]} b4 {[%emt 0:00:09]} 51. axb4 {[%emt 0:00:00]} Re2 {[%emt 0:00:04]} 52. Kf3 {[%emt 0:00:00]} Rxb2 {[%emt 0:00:05]} 53. Rxe5 {[%emt 0:00:00]} 1-0

[Event "Baku Open 2024"]
[Site "Baku"]
[Date "2024.07.02"]
[Round "4.42"]
[White "Dimitrova, Aleksandra"]
[Black "Nurgali, Nazerke"]
[Result "1/2-1/2"]
[ECO "E18"]
[WhiteElo "2138"]
[BlackElo "2252"]
[Annotator "NA RC"]
[PlyCount "111"]
[EventDate "2024.06.29"]
[EventType "swiss"]
[EventCountry "AZE"]
[SourceTitle "playchess.com"]
[Source "ChessBase"]
[SourceQuality "1"]
[TimeControl "5400+30"]

1. c4 {[%emt 0:00:02]} e6 {[%emt 0:00:17]} 2. g3 {[%emt 0:00:06]} d5 {[%emt 0:00:42]} 3. Bg2 {[%emt 0:00:18]} Nf6 {[%emt 0:00:48]} 4. Nf3 {[%emt 0:00:05]} Be7 {[%emt 0:02:38]} 5. O-O {[%emt 0:00:08]} O-O {[%emt 0:00:19]} 6. d4 {[%emt 0:00:12]} b6 {[%emt 0:01:20]} 7. cxd5 {[%emt 0:01:09]} exd5 {[%emt 0:00:06]} 8. Nc3 {[%emt 0:00:12]} Bb7 {[%emt 0:00:43]} 9. Ne5 {[%emt 0:02:18]} Na6 {[%emt 0:05:34]} 10. Bf4 {[%emt 0:18:14]} c5 {[%emt 0:01:31]} 11. Rc1 {[%emt 0:05:25]} Nc7 {[%emt 0:02:13]} 12. Qd2 {[%emt 0:13:57]} cxd4 {[%emt 0:07:25]} 13. Qxd4 {[%emt 0:00:36]} Ne6 {[%emt 0:00:26]} 14. Qd2 {[%emt 0:01:14]} Bb4 {[%emt 0:04:55]} 15. Nd3 {[%emt 0:17:51]} Bxc3 {[%emt 0:04:29]} 16. Qxc3 {[%emt 0:00:06]} d4 {[%emt 0:02:51]} 17. Qb3 {[%emt 0:00:30]} Bxg2 {[%emt 0:02:29]} 18. Kxg2 {[%emt 0:00:02]} Nxf4+ {[%emt 0:02:13]} 19. Nxf4 {[%emt 0:00:39]} Qe7 {[%emt 0:01:09]} 20. h4 {[%emt 0:05:18]} h6 {[%emt 0:01:58]} 21. Qf3 {[%emt 0:03:56]} Rad8 {[%emt 0:04:03]} 22. Rfd1 {[%emt 0:07:56]} Rd6 {[%emt 0:03:14]} 23. h5 {[%emt 0:03:06]} Rfd8 {[%emt 0:03:15]} 24. Rc6 {[%emt 0:01:12]} R6d7 {[%emt 0:03:01]} 25. Rdc1 {[%emt 0:01:40]} Ne4 {[%emt 0:05:01]} 26. Rc8 {[%emt 0:01:02]} Nc5 {[%emt 0:40:50]} 27. Rxd8+ {[%emt 0:00:44]} Rxd8 {[%emt 0:00:00]} 28. b4 {[%emt 0:02:14]} Ne4 {[%emt 0:00:00]} 29. a3 {[%emt 0:00:40]} a5 {[%emt 0:00:00]} 30. bxa5 {[%emt 0:04:58]} bxa5 {[%emt 0:00:00]} 31. Qb3 {[%emt 0:07:08]} Nc3 {[%emt 0:00:00]} 32. e3 {[%emt 0:00:32]} Qe4+ {[%emt 0:00:00]} 33. Kg1 {[%emt 0:01:14]} Rc8 {[%emt 0:00:00]} 34. exd4 {[%emt 0:00:29]} Qxd4 {[%emt 0:00:00]} 35. Re1 {[%emt 0:01:15]} Rd8 {[%emt 0:00:00]} 36. Qb7 {[%emt 0:00:42]} Qc5 {[%emt 0:00:00]} 37. Qe7 {[%emt 0:00:30]} Qxe7 {[%emt 0:00:00]} 38. Rxe7 {[%emt 0:00:02]} Nd5 {[%emt 0:00:00]} 39. Re4 {[%emt 0:01:08]} Nxf4 {[%emt 0:00:00]} 40. Rxf4 {[%emt 0:00:04]} Rd3 {[%emt 0:00:00]} 41. a4 {[%emt 0:01:21]} Rd5 {[%emt 0:00:00]} 42. g4 {[%emt 0:00:16]} Kf8 {[%emt 0:00:00]} 43. Kg2 {[%emt 0:01:29]} Ke7 {[%emt 0:00:00]} 44. Kf3 {[%emt 0:00:00]} Ke6 {[%emt 0:00:10]} 45. Ke4 {[%emt 0:00:03]} Rg5 {[%emt 0:02:11]} 46. f3 {[%emt 0:00:33]} Rc5 {[%emt 0:01:17]} 47. Kd4 {[%emt 0:00:15]} Rg5 {[%emt 0:00:53]} 48. Kc4 {[%emt 0:00:30]} f5 {[%emt 0:00:57]} 49. Kd4 {[%emt 0:01:05]} fxg4 {[%emt 0:00:21]} 50. fxg4 {[%emt 0:00:07]} Kd6 {[%emt 0:00:36]} 51. Kc4 {[%emt 0:00:44]} Kc6 {[%emt 0:01:26]} 52. Re4 {[%emt 0:00:23]} Rc5+ {[%emt 0:00:29]} 53. Kd4 {[%emt 0:00:10]} Rd5+ {[%emt 0:00:02]} 54. Kc4 {[%emt 0:00:10]} Rc5+ {[%emt 0:00:04]} 55. Kd4 {[%emt 0:00:03]} Rd5+ {[%emt 0:00:04]} 56. Kc4 {[%emt 0:00:03]} 1/2-1/2

[Event "Baku Open 2024"]
[Site "Baku"]
[Date "2024.07.02"]
[Round "4.43"]
[White "Abdinova, Narmin"]
[Black "Davudov, Tunar"]
[Result "1-0"]
[ECO "C54"]
[WhiteElo "2121"]
[BlackElo "2249"]
[Annotator "NA RC"]
[PlyCount "107"]
[EventDate "2024.06.29"]
[EventType "swiss"]
[EventCountry "AZE"]
[SourceTitle "playchess.com"]
[Source "ChessBase"]
[SourceQuality "1"]
[TimeControl "5400+30"]

1. e4 {[%emt 0:08:42]} e5 {[%emt 0:00:24]} 2. Nf3 {[%emt 0:00:08]} Nc6 {[%emt 0:00:10]} 3. Bc4 {[%emt 0:00:10]} Nf6 {[%emt 0:00:21]} 4. d3 {[%emt 0:00:08]} Bc5 {[%emt 0:00:52]} 5. c3 {[%emt 0:00:24]} a6 {[%emt 0:00:46]} 6. a4 {[%emt 0:00:19]} Ba7 {[%emt 0:01:07]} 7. O-O {[%emt 0:00:12]} O-O {[%emt 0:00:37]} 8. b4 {[%emt 0:00:10]} d6 {[%emt 0:00:46]} 9. h3 {[%emt 0:00:05]} Ne7 {[%emt 0:01:59]} 10. Re1 {[%emt 0:01:30]} Ng6 {[%emt 0:00:39]} 11. Nbd2 {[%emt 0:12:52]} Be6 {[%emt 0:07:46]} 12. Qb3 {[%emt 0:10:22]} Qd7 {[%emt 0:03:07]} 13. d4 {[%emt 0:02:27]} exd4 {[%emt 0:01:48]} 14. Bxe6 {[%emt 0:02:55]} fxe6 {[%emt 0:01:36]} 15. cxd4 {[%emt 0:00:45]} Kh8 {[%emt 0:02:21]} 16. Nf1 {[%emt 0:04:07]} Nh5 {[%emt 0:03:14]} 17. Ra2 {[%emt 0:09:01]} Nhf4 {[%emt 0:17:34]} 18. Ng3 {[%emt 0:10:35]} Qf7 {[%emt 0:04:11]} 19. Bxf4 {[%emt 0:01:01]} Nxf4 {[%emt 0:00:23]} 20. Kh2 {[%emt 0:02:01]} Qg6 {[%emt 0:05:15]} 21. Rc2 {[%emt 0:06:19]} Rf7 {[%emt 0:04:26]} 22. Rec1 {[%emt 0:00:19]} Rc8 {[%emt 0:09:40]} 23. b5 {[%emt 0:04:04]} axb5 {[%emt 0:01:25]} 24. Qxb5 {[%emt 0:00:31]} c6 {[%emt 0:00:54]} 25. Qa5 {[%emt 0:01:13]} Bb8 {[%emt 0:01:27]} 26. Rb1 {[%emt 0:11:31]} d5 {[%emt 0:04:38]} 27. Rcb2 {[%emt 0:00:03]} dxe4 {[%emt 0:02:43]} 28. Ng5 {[%emt 0:00:43]} Rff8 {[%emt 0:10:52]} 29. N5xe4 {[%emt 0:00:27]} Nd3 {[%emt 0:02:15]} 30. Rxb7 {[%emt 0:02:23]} Nxf2 {[%emt 0:00:31]} 31. Rxb8 {[%emt 0:01:01]} Nxe4 {[%emt 0:00:13]} 32. Qc7 {[%emt 0:05:05]} Qxg3+ {[%emt 0:01:00]} 33. Qxg3 {[%emt 0:00:07]} Nxg3 {[%emt 0:00:03]} 34. Rxc8 {[%emt 0:00:11]} Rxc8 {[%emt 0:00:05]} 35. Kxg3 {[%emt 0:00:04]} Kg8 {[%emt 0:00:24]} 36. a5 {[%emt 0:02:16]} Ra8 {[%emt 0:02:04]} 37. Ra1 {[%emt 0:00:09]} Kf7 {[%emt 0:01:03]} 38. a6 {[%emt 0:00:18]} Ra7 {[%emt 0:01:40]} 39. Kf4 {[%emt 0:00:03]} h5 {[%emt 0:01:50]} 40. h4 {[%emt 0:01:31]} Ke7 {[%emt 0:08:21]} 41. Ra5 {[%emt 0:01:11]} Kf6 {[%emt 0:00:00]} 42. g3 {[%emt 0:00:08]} g6 {[%emt 0:00:00]} 43. Ke4 {[%emt 0:00:26]} Kf7 {[%emt 0:00:00]} 44. Ke5 {[%emt 0:00:06]} Ke7 {[%emt 0:00:00]} 45. Ra3 {[%emt 0:00:15]} Kd7 {[%emt 0:00:00]} 46. Kf6 {[%emt 0:01:17]} Kd6 {[%emt 0:00:00]} 47. Ra5 {[%emt 0:00:07]} c5 {[%emt 0:00:00]} 48. dxc5+ {[%emt 0:00:45]} Kd5 {[%emt 0:00:00]} 49. c6+ {[%emt 0:00:08]} Kd6 {[%emt 0:00:00]} 50. c7 {[%emt 0:00:05]} Kxc7 {[%emt 0:00:00]} 51. Kxe6 {[%emt 0:00:06]} Kb6 {[%emt 0:00:00]} 52. Ra3 {[%emt 0:00:11]} Ra8 {[%emt 0:00:00]} 53. a7 {[%emt 0:00:08]} Kb7 {[%emt 0:00:00]} 54. Kf7 {[%emt 0:00:17]} 1-0

[Event "Baku Open 2024"]
[Site "Baku"]
[Date "2024.07.02"]
[Round "4.44"]
[White "Tregubenko, Nikolay"]
[Black "Ravshanov, Sheralijon"]
[Result "1/2-1/2"]
[ECO "C13"]
[WhiteElo "2246"]
[BlackElo "2072"]
[Annotator "NA RC"]
[PlyCount "50"]
[EventDate "2024.06.29"]
[EventType "swiss"]
[EventCountry "AZE"]
[SourceTitle "playchess.com"]
[Source "ChessBase"]
[SourceQuality "1"]
[TimeControl "5400+30"]

1. e4 {[%emt 0:02:26]} e6 {[%emt 0:00:30]} 2. d4 {[%emt 0:00:23]} d5 {[%emt 0:00:37]} 3. Nc3 {[%emt 0:00:12]} Nf6 {[%emt 0:01:03]} 4. Bg5 {[%emt 0:01:05]} dxe4 {[%emt 0:00:51]} 5. Nxe4 {[%emt 0:00:10]} Be7 {[%emt 0:00:44]} 6. Bxf6 {[%emt 0:00:55]} gxf6 {[%emt 0:00:34]} 7. Nf3 {[%emt 0:00:07]} b6 {[%emt 0:00:44]} 8. Bb5+ {[%emt 0:04:27]} c6 {[%emt 0:00:38]} 9. Bd3 {[%emt 0:00:16]} Bb7 {[%emt 0:00:48]} 10. Qd2 {[%emt 0:00:33]} Qc7 {[%emt 0:09:22]} 11. Qh6 {[%emt 0:11:07]} Nd7 {[%emt 0:00:50]} 12. Qg7 {[%emt 0:00:54]} Rf8 {[%emt 0:00:34]} 13. Qxh7 {[%emt 0:00:39]} O-O-O {[%emt 0:02:36]} 14. Qh6 {[%emt 0:09:44]} c5 {[%emt 0:19:17]} 15. dxc5 {[%emt 1:05:02]} Nxc5 {[%emt 0:06:43]} 16. Nxc5 {[%emt 0:00:00]} Qxc5 {[%emt 0:05:45]} 17. O-O-O {[%emt 0:00:00]} Rg8 {[%emt 0:01:34]} 18. Rhg1 {[%emt 0:00:00]} Qxf2 {[%emt 0:01:55]} 19. Rd2 {[%emt 0:00:00]} Qc5 {[%emt 0:04:44]} 20. Rgd1 {[%emt 0:00:00]} Bxf3 {[%emt 0:22:08]} 21. gxf3 {[%emt 0:00:00]} Qg5 {[%emt 0:00:34]} 22. Qh7 {[%emt 0:00:00]} Kb8 {[%emt 0:02:46]} 23. Qe4 {[%emt 0:00:00]} Bc5 {[%emt 0:01:03]} 24. f4 {[%emt 0:00:00]} Qd5 {[%emt 0:00:19]} 25. Qxd5 {[%emt 0:00:00]} Rxd5 {[%emt 0:00:09]} 1/2-1/2

[Event "Baku Open 2024"]
[Site "Baku"]
[Date "2024.07.03"]
[Round "5.1"]
[White "Ibrahimli, Murad"]
[Black "Movahed, Sina"]
[Result "1/2-1/2"]
[ECO "D30"]
[WhiteElo "2400"]
[BlackElo "2482"]
[Annotator "TA"]
[PlyCount "124"]
[EventDate "2024.06.29"]
[EventType "swiss"]
[EventCountry "AZE"]
[SourceTitle "playchess.com"]
[Source "ChessBase"]
[SourceQuality "1"]
[TimeControl "5400+30"]

{[%evp 34,124,-9,-24,0,-31,-13,-35,-33,-25,-18,-16,-32,-29,-18,-44,-48,-54,-57,-53,-56,-60,-54,-63,-35,-40,-61,-43,-52,-72,-66,-43,-20,-13,-8,-8,-8,-13,-13,-17,-16,-20,-16,-76,-13,-23,0,0,0,0,0,-27,-4,-8,-8,-8,0,0,0,0,0,-29,0,0,60,-380,0,0,8,8,8,8,20,20,18,17,160,142,210,218,247,38,44,43,30,2,0,0,0,0,0,0,0]} 1. d4 {[%emt 0:00:51]} Nf6 {[%emt 0:01:01]} 2. c4 {[%emt 0:00:06]} e6 {[%emt 0:00:08]} 3. Nf3 {[%emt 0:03:33]} d5 {[%emt 0:01:15]} 4. e3 {[%emt 0:02:59]} Nbd7 {[%emt 0:02:38]} 5. Bd3 {[%emt 0:00:52]} dxc4 {[%emt 0:00:52]} 6. Bxc4 {[%emt 0:00:06] D30: Queen's Gambit Declined: Systems without Nc3.} a6 {[%emt 0:00:07]} 7. a4 {[%emt 0:03:49]} b6 {[%emt 0:03:17]} 8. O-O {[%emt 0:00:41]} Bb7 {[%emt 0:00:41]} 9. Nc3 {[%emt 0:06:16]} Bb4 {[%emt 0:02:38]} 10. Qe2 {[%emt 0:00:34]} O-O {[%emt 0:00:29]} 11. Rd1 {[%emt 0:00:30]} Qe7 {[%emt 0:01:50]} 12. Bd2 {[%emt 0:07:51]} c5 {[%emt 0:02:16]} 13. Ne5 {[%emt 0:02:11]} Rfd8 {[%emt 0:07:10]} 14. h3 $146 {[%emt 0:08:21]} ({Predecessor:} 14. Rac1 h6 15. h3 cxd4 16. exd4 Nxe5 17. dxe5 Bxc3 18. Bxc3 Nd5 19. Bd2 Qh4 20. Qg4 Qxg4 21. hxg4 {1-0 Epishin,V (2400)-Barsov,A Khodzhaev Memorial 1987}) 14... h6 {[%emt 0:11:41]} 15. Nd3 {[%emt 0:12:07]} cxd4 {[%emt 0:02:24]} 16. exd4 {[%emt 0:05:18]} Bxc3 {[%emt 0:04:27]} 17. Bxc3 {[%emt 0:22:21]} Ne4 {[%emt 0:03:11]} 18. Bb4 {[%emt 0:05:54]} Qf6 {[%emt 0:03:22]} 19. Ne5 {[%emt 0:02:03]} a5 {[%emt 0:02:55]} 20. Ba3 {[%emt 0:03:24]} Nxe5 {[%emt 0:00:35]} 21. dxe5 {[%emt 0:00:05]} Qg5 {[%emt 0:00:19]} 22. Qe3 $1 {[%emt 0:03:58]} Qxe3 {[%emt 0:04:29]} 23. fxe3 {[%emt 0:00:02]} Rac8 {[%emt 0:00:24]} 24. b3 {[%emt 0:02:12]} Bd5 {[%emt 0:01:24]} 25. Be7 {[%emt 0:00:49]} Re8 {[%emt 0:03:40]} 26. Bxd5 {[%emt 0:00:04]} exd5 {[%emt 0:00:10]} 27. Bd6 {[%emt 0:00:04]} Rc3 {[%emt 0:00:23]} 28. b4 {[%emt 0:01:04]} Rxe3 {[%emt 0:07:29]} 29. bxa5 {[%emt 0:00:16]} bxa5 {[%emt 0:00:06]} 30. Rxd5 {[%emt 0:00:12]} Rc8 {[%emt 0:00:26]} 31. Rxa5 {[%emt 0:04:06]} Rc2 {[%emt 0:01:06]} 32. Kh1 {[%emt 0:01:11]} (32. Ra8+ $2 Kh7 33. Kh1 (33. a5 $2 Ree2 $19) 33... Ree2 $19) 32... Ng3+ {[%emt 0:04:23]} 33. Kh2 {[%emt 0:00:09]} Nf5 {[%emt 0:00:10]} 34. Rc5 {[%emt 0:00:41]} Rd2 {[%emt 0:01:21]} 35. Rg1 {[%emt 0:02:00]} Nd4 {[%emt 0:04:08]} 36. Kh1 {[%emt 0:01:10]} Ra2 {[%emt 0:07:46]} 37. Rc4 {[%emt 0:00:25]} Ne6 {[%emt 0:00:42]} 38. Bc7 {[%emt 0:00:42]} (38. Rc8+ $11 {remains equal.} Kh7 39. Rcc1) 38... g5 {[%emt 0:01:55]} (38... Nxc7 $17 39. Rxc7 Rxe5) 39. Bb6 {[%emt 0:00:15]} Rb3 {[%emt 0:01:46]} 40. a5 {[%emt 0:00:21]} Nf4 {[%emt 0:00:46]} 41. e6 {[%emt 0:00:08]} Nxe6 {[%emt 0:01:24]} 42. h4 {[%emt 0:00:16]} Kh7 {[%emt 0:00:45]} 43. hxg5 {[%emt 0:00:51]} hxg5 {[%emt 0:00:18]} 44. Rf1 {[%emt 0:00:55]} Nf4 {[%emt 0:00:56]} 45. Rf2 {[%emt 0:00:24]} Ra1+ {[%emt 0:01:24]} 46. Kh2 {[%emt 0:00:01]} Rbb1 {[%emt 0:00:12]} 47. Rc6 {[%emt 0:01:19]} Nh5 {[%emt 0:01:58]} (47... f6 $5) 48. Kh3 {[%emt 0:00:22]} Ra3+ {[%emt 0:03:58]} (48... Rh1+ $11 49. Kg4 f6) 49. Rf3 $2 {[%emt 0:00:38][%mdl 8192] [#]} (49. Kg4 $14 {stays ahead.} Rg3+ 50. Kf5) 49... Rb4 $2 {[%emt 0:01:45]} (49... Ra4 $1 $19 {[%cal Rb1h1]} 50. Kh2 (50. g4 Nf4+) 50... g4) 50. Kh2 $1 $11 {[%emt 0:00:17]} Rh4+ {[%emt 0:00:52]} 51. Kg1 {[%emt 0:00:21]} Ra1+ {[%emt 0:00:08]} 52. Rf1 {[%emt 0:00:44]} Rha4 {[%emt 0:00:32]} 53. Rxa1 {[%emt 0:00:23]} Rxa1+ {[%emt 0:00:01]} 54. Kf2 {[%emt 0:00:01]} Ra2+ {[%emt 0:00:35]} (54... Nf4 $11) 55. Ke3 $16 {[%emt 0:00:20]} f5 {[%emt 0:01:20]} (55... Nf4 $16 {might work better.}) 56. Kd4 $18 {[%emt 0:00:33]} f4 {[%emt 0:01:58]} 57. Ke4 $2 {[%emt 0:00:40]} ({Better is} 57. Kc4 $18) 57... g4 $14 {[%emt 0:01:11]} 58. Kf5 {[%emt 0:01:03]} f3 $1 {[%emt 0:01:13]} 59. gxf3 {[%emt 0:00:24]} gxf3 {[%emt 0:00:02]} 60. Kg4 {[%emt 0:00:10]} f2 {[%emt 0:00:31]} 61. Bxf2 {[%emt 0:00:54]} (61. Kxh5 {leads to mate.} f1=Q (61... f1=R 62. Rc4 $11) 62. Rc7+ Kg8 63. Rc8+ Kf7 64. Rc7+ Ke6 65. Rc6+ Kd7 66. Rc7+ Kd6 67. Bc5+ Kxc7 68. Bb6+ Kc6 69. Bd8 Qf5+ 70. Kh6 Rh2+) 61... Rxf2 {[%emt 0:00:08]} 62. Kxh5 {[%emt 0:00:04]} Rf5+ {[%emt 0:00:08]} 1/2-1/2